bitfinex/quotes_ETHUSD_20260108
["timestamp","ask_amount","ask_price","bid_price","bid_amount"]
[1767886377235,0.90921756,3102.2,3101.0,0.09668063]
[1767886377433,9.6708681,3102.1,3100.8,0.09668063]
[1767886377734,1.14230857,3102.0,3100.9,0.09668063]
[1767886378648,3.2236227,3102.1,3101.3,0.09668063]
[1767886378850,6.4472454,3102.1,3101.1,0.09668063]
[1767886379024,6.4472454,3102.1,3101.3,0.09668063]
[1767886379536,6.4462064,3102.6,3101.3,0.09668063]
[1767886379739,9.6693096,3102.6,3101.3,0.09668063]
[1767886379921,1.90085272,3102.5,3101.1,0.09668063]
[1767886380328,6.4462064,3102.6,3101.6,0.09668063]
[1767886380909,9.6693096,3102.6,3101.6,0.09668063]
[1767886381126,0.843,3102.5,3100.6,1.0583605]
[1767886381445,0.90921756,3102.4,3100.8,0.09668063]
[1767886381643,9.67024464,3102.3,3100.8,0.09668063]
[1767886381815,9.67024464,3102.3,3100.8,0.29638474]
[1767886381816,1.38028415,3102.2,3100.8,0.29638474]
[1767886382015,1.38028415,3102.2,3100.6,1.0583605]
[1767886382243,1.38028415,3102.2,3100.5,0.001]
[1767886382244,0.90921756,3102.1,3100.5,0.001]
[1767886382444,0.90921756,3102.1,3099.7,3.32277481]
[1767886382445,0.98560281,3101.5,3099.4,0.09668063]
[1767886382649,1.31428546,3101.4,3099.4,1.04704379]
[1767886382946,1.31428546,3101.4,3099.8,0.09668063]
[1767886383120,0.843,3101.3,3099.8,0.09668063]
[1767886383320,0.843,3101.3,3099.6,0.09668063]
[1767886383642,9.67367469,3101.2,3099.6,1.04704379]
[1767886383845,1.05166747,3101.1,3099.8,0.09668063]
[1767886384016,1.05166747,3101.1,3099.8,1.04704379]
[1767886384211,1.05166747,3101.1,3100.0,1.04704379]
[1767886384413,3.22372662,3102.0,3100.2,1.04704379]
[1767886384619,4.06772662,3102.0,3100.4,1.04704379]
[1767886384820,7.29145324,3102.0,3100.4,1.04704379]
[1767886385028,10.51521777,3102.0,3100.2,0.09668063]
[1767886385227,0.98560281,3101.8,3100.0,0.09668063]
[1767886385616,0.98560281,3101.6,3099.9,3.22591051]
[1767886385816,0.98560281,3101.4,3099.9,3.22591051]
[1767886386050,0.98560281,3101.4,3100.0,0.09668063]
[1767886386621,0.844,3101.5,3100.0,0.09668063]
[1767886386822,0.844,3101.5,3100.1,0.33225911]
[1767886387148,0.844,3101.5,3099.8,0.09668063]
[1767886387350,0.844,3101.5,3099.8,3.3226798]
[1767886387539,0.844,3101.5,3100.0,4.27274731]
[1767886387540,6.44870058,3101.4,3100.0,4.27274731]
[1767886387852,6.44870058,3101.4,3099.0,0.95036316]
[1767886387853,3.57416859,3100.9,3099.0,0.95036316]
[1767886388022,3.57416859,3100.1,3098.6,0.95036316]
[1767886388357,0.35741686,3100.0,3099.0,0.95036316]
[1767886388515,0.844,3100.5,3099.0,0.95036316]
[1767886388836,4.41816859,3100.5,3098.7,0.09668063]
[1767886389223,4.41816859,3100.5,3098.8,3.22704493]
[1767886389444,0.844,3100.5,3098.8,3.22704493]
[1767886389625,0.844,3100.5,3098.7,0.09668063]
[1767886389626,9.67617081,3100.4,3098.7,3.32380943]
[1767886389815,1.05201708,3100.3,3098.7,0.09668063]
[1767886390073,1.05201708,3100.3,3098.6,0.95036316]
[1767886390242,1.05201708,3100.3,3098.6,4.1776195]
[1767886390547,3.57416859,3100.1,3098.6,0.95036316]
[1767886390753,0.90626602,3099.9,3098.2,3.22764273]
[1767886390921,0.90626602,3099.8,3098.1,0.09668063]
[1767886391122,0.90626602,3099.8,3098.5,3.22729088]
[1767886391317,0.90626602,3099.8,3098.4,3.22743635]
[1767886391542,6.45182102,3099.9,3098.4,1.5877444]
[1767886391721,6.45182102,3099.9,3098.5,0.93256647]
[1767886392049,9.67773153,3099.9,3098.4,3.22744295]
[1767886392246,9.67773153,3099.9,3098.3,0.09668063]
[1767886392652,13.25190012,3099.9,3098.1,1.0292471]
[1767886392838,0.90626602,3099.8,3098.1,3.22775624]
[1767886393028,1.07804669,3099.7,3097.9,0.93256647]
[1767886393234,1.07804669,3099.7,3098.2,3.2276172]
[1767886393433,1.07804669,3099.7,3098.3,3.22755743]
[1767886393853,3.22622273,3099.6,3098.9,0.001]
[1767886394057,6.45244546,3099.6,3098.9,0.001]
[1767886394229,0.83744922,3099.5,3098.9,0.001]
[1767886394431,0.83744922,3099.5,3097.9,0.93256647]
[1767886394432,3.57416859,3099.4,3097.9,0.93256647]
[1767886394826,0.83744922,3099.5,3098.2,0.93256647]
[1767886395060,0.83744922,3099.5,3097.9,3.22797524]
[1767886395358,0.83744922,3099.5,3098.0,3.2278811]
[1767886395545,1.05161174,3099.4,3098.1,0.32278811]
[1767886395742,6.45307004,3099.3,3098.1,0.32278811]
[1767886395963,9.67960506,3099.3,3097.8,0.93256647]
[1767886396255,9.67960506,3099.3,3097.7,0.09668063]
[1767886396256,0.844,3099.2,3097.7,0.09668063]
[1767886396433,6.45307004,3099.3,3098.1,3.2277602]
[1767886396634,7.29707004,3099.3,3098.2,0.93256647]
[1767886396957,0.83486818,3099.2,3098.2,0.93256647]
[1767886397159,0.83486818,3099.2,3097.7,0.09668063]
[1767886397332,0.83486818,3099.2,3097.9,3.22793553]
[1767886397727,0.83486818,3099.2,3098.1,3.22775816]
[1767886397945,3.22674324,3099.1,3097.9,0.93256647]
[1767886398128,3.22674324,3099.1,3098.0,0.73887612]
[1767886398329,3.22674324,3099.1,3098.0,1.67144259]
[1767886398636,6.45348648,3099.1,3098.0,1.67144259]
[1767886399039,9.68022972,3099.1,3097.6,3.22826559]
[1767886399239,9.68022972,3099.1,3097.7,3.22819865]
[1767886399839,6.45348648,3099.1,3097.6,3.22827805]
[1767886400124,6.45348648,3099.1,3097.7,0.93256647]
[1767886400341,7.62413881,3099.1,3097.9,0.93256647]
[1767886400942,4.39739557,3099.1,3097.9,0.93256647]
[1767886401137,3.22674324,3099.1,3097.9,0.93256647]
[1767886401342,2.30162384,3100.2,3098.1,0.93256647]
[1767886401546,6.45140478,3100.1,3098.4,0.93256647]
[1767886401745,3.22570239,3100.1,3098.6,0.93256647]
[1767886401943,6.49172605,3100.1,3098.7,6.45431954]
[1767886402134,6.45140478,3100.1,3098.8,0.8229886]
[1767886402555,3.57416859,3099.8,3097.9,0.93256647]
[1767886402741,0.04032648,3099.7,3098.0,1.77556647]
[1767886402945,3.57416859,3099.8,3098.2,3.22764912]
[1767886403165,0.88432648,3099.7,3098.2,3.22764912]
[1767886403365,0.844,3099.7,3098.2,0.93256647]
[1767886403574,6.45140478,3100.1,3098.7,0.93256647]
[1767886403863,0.04032258,3100.0,3098.7,0.93256647]
[1767886404071,6.45182102,3099.9,3098.6,3.22724035]
[1767886404259,3.22584735,3100.0,3098.8,0.93256647]
[1767886404438,6.4516947,3100.0,3098.9,0.82298783]
[1767886404640,9.67754205,3100.0,3098.9,0.82298783]
[1767886404834,9.67754205,3100.0,3098.3,0.17755665]
[1767886404835,9.67754205,3100.0,3098.3,1.11012312]
[1767886405168,6.4516947,3100.0,3098.4,1.77556647]
[1767886405464,0.04032388,3099.9,3098.5,3.22731361]
[1767886405868,0.04032388,3099.9,3098.7,7.38687926]
[1767886406074,3.22584735,3100.0,3098.9,4.15951796]
[1767886406366,6.4516947,3100.0,3099.0,0.73864792]
[1767886406541,3.22584735,3100.0,3099.0,0.73864792]
[1767886406738,3.22539027,3100.4,3099.0,1.67121439]
[1767886406940,0.04031867,3100.3,3099.1,0.93256647]
[1767886408171,0.002,3099.9,3099.1,4.15927913]
[1767886408570,0.002,3099.9,3099.2,0.48979271]
[1767886408769,0.002,3099.9,3098.9,4.06986144]
[1767886409355,0.002,3099.9,3098.9,5.00242791]
[1767886410176,0.002,3099.9,3099.0,4.15941092]
[1767886410674,0.002,3100.2,3099.4,0.93256647]
[1767886410884,0.844,3101.3,3099.6,0.93256647]
[1767886410885,3.22503483,3100.8,3099.6,0.93256647]
[1767886411086,3.22503483,3100.8,3099.8,0.93256647]
[1767886411087,6.45006966,3100.8,3099.8,0.93256647]
[1767886411384,3.22503483,3100.8,3099.8,0.93256647]
[1767886412397,3.57416859,3100.4,3098.8,0.94471318]
[1767886412618,0.04031867,3100.3,3098.9,0.843]
[1767886412744,0.36144873,3100.2,3099.0,0.17877132]
[1767886412947,0.04032127,3100.1,3099.0,0.17877132]
[1767886413478,0.04032127,3100.1,3098.8,1.78771318]
[1767886413674,0.04032127,3100.1,3098.7,4.07010141]
[1767886414076,0.36144873,3100.2,3098.8,0.94471318]
[1767886414378,0.04032127,3100.1,3098.8,4.17173812]
[1767886414781,6.45119668,3100.2,3098.8,7.39879375]
[1767886415086,3.2249378,3100.9,3098.9,0.94471318]
[1767886415287,4.45848076,3100.8,3098.9,0.94471318]
[1767886415587,0.844,3100.8,3098.9,0.94471318]
[1767886415882,3.22666221,3101.1,3099.7,0.94471318]
[1767886416053,3.57416859,3100.7,3099.4,0.843]
[1767886416248,3.22528624,3100.5,3099.3,0.843]
[1767886416463,0.04031737,3100.4,3099.0,3.22684]
[1767886416715,0.9353324,3100.2,3099.0,0.64537955]
[1767886417000,0.04032127,3100.1,3098.9,3.22695088]
[1767886417204,0.9353324,3100.2,3098.8,0.843]
[1767886417407,0.97565367,3100.1,3098.8,3.22699718]
[1767886418519,6.4516129,3100.0,3098.7,7.29727786]
[1767886418677,6.4516129,3100.0,3098.7,4.07011809]
[1767886418880,0.73869453,3099.9,3098.8,0.82640914]
[1767886419068,0.73869453,3099.9,3098.8,0.72972851]
[1767886419269,0.77901841,3099.9,3098.8,0.72972851]
[1767886419496,0.73869453,3099.9,3098.8,0.72972851]
[1767886420372,3.96469351,3099.9,3098.8,0.72972851]
[1767886420570,3.96469351,3099.9,3098.7,0.09668063]
[1767886420810,7.19069249,3099.9,3098.6,0.843]
[1767886421175,0.97565758,3099.8,3098.4,0.001]
[1767886421403,7.19069249,3099.9,3099.6,0.001]
[1767886421694,7.19069249,3099.9,3098.4,0.09768063]
[1767886421895,3.96469351,3099.9,3098.8,3.22704248]
[1767886422079,0.04032518,3099.8,3098.8,0.33237231]
[1767886422401,3.96469351,3099.9,3098.8,3.55941697]
[1767886422597,7.19069249,3099.9,3098.8,0.33237231]
[1767886422781,7.19069249,3099.9,3098.9,0.94471318]
[1767886422981,0.04032518,3099.8,3098.9,0.94471318]
[1767886423187,3.96469351,3099.9,3098.9,0.94471318]
[1767886423485,3.96469351,3099.9,3098.9,1.39512479]
[1767886423689,7.19069249,3099.9,3098.9,1.39512479]
[1767886424073,0.04032518,3099.8,3098.9,0.45041161]
[1767886424398,7.19069249,3099.9,3098.8,0.843]
[1767886424998,0.04032518,3099.8,3098.8,0.843]
[1767886425206,7.19069249,3099.9,3098.8,5.01473043]
[1767886425597,7.19069249,3099.9,3098.8,8.24178606]
[1767886425598,3.96469351,3099.9,3098.8,8.24178606]
[1767886426212,7.19069249,3099.9,3098.8,5.01473043]
[1767886426384,0.71906925,3099.8,3098.8,1.78771318]
[1767886426702,0.71906925,3099.8,3098.8,5.01475755]
[1767886427112,9.71868243,3099.7,3098.4,0.94571318]
[1767886427315,0.9353324,3099.4,3098.4,0.001]
[1767886427477,3.57416859,3099.1,3097.6,0.94471318]
[1767886427684,0.35741686,3099.0,3097.6,0.94471318]
[1767886428416,3.57416859,3098.7,3096.7,0.94471318]
[1767886428605,0.844,3098.6,3096.8,1.78771318]
[1767886428918,3.57416859,3098.3,3096.8,0.94471318]
[1767886429119,3.57416859,3098.3,3096.6,0.001]
[1767886429120,9.68429205,3097.8,3096.6,0.001]
[1767886429418,1.32584606,3097.7,3096.6,0.001]
[1767886429986,6.4561947,3097.8,3096.6,0.001]
[1767886430217,3.22809735,3097.8,3096.6,0.001]
[1767886430408,3.22788896,3098.0,3096.6,0.001]
[1767886430607,6.45577792,3098.0,3096.6,0.001]
[1767886430915,6.45577792,3098.0,3096.7,0.94471318]
[1767886431118,6.45411126,3098.8,3097.0,0.94471318]
[1767886431303,3.22705563,3098.8,3097.0,0.94471318]
[1767886431511,0.35741686,3099.0,3097.2,0.94471318]
[1767886431712,3.22668114,3099.2,3097.4,0.94471318]
[1767886431909,3.22668114,3099.2,3097.6,0.94471318]
[1767886432090,6.45336228,3099.2,3097.6,0.94471318]
[1767886432289,3.22668114,3099.2,3097.6,0.94471318]
[1767886432487,6.45336228,3099.2,3097.6,0.94471318]
[1767886432691,3.22632682,3099.5,3097.6,0.94471318]
[1767886432937,6.49301049,3099.5,3097.8,0.94471318]
[1767886433090,6.49301049,3099.5,3098.0,0.94471318]
[1767886433091,6.45268141,3099.5,3098.0,0.94471318]
[1767886433290,0.04033038,3099.4,3098.0,0.94471318]
[1767886433737,0.04033038,3099.4,3098.1,0.843]
[1767886433895,6.45268141,3099.5,3098.1,1.78771318]
[1767886434098,7.18244955,3099.5,3098.2,1.02177132]
[1767886436350,7.18244955,3099.5,3098.2,4.2493823]
[1767886436521,7.18244955,3099.5,3098.2,3.4063823]
[1767886436727,7.18244955,3099.5,3098.2,4.2493823]
[1767886437151,3.57416859,3098.9,3097.6,3.22824565]
[1767886437318,0.04033819,3098.8,3097.5,0.17877132]
[1767886437518,0.845,3099.0,3097.9,3.22798946]
[1767886438047,0.88533559,3099.0,3097.8,3.22800404]
[1767886438223,0.88533559,3099.0,3097.6,3.22827599]
[1767886438224,4.07190583,3099.0,3097.9,0.3228004]
[1767886438432,4.07190583,3099.0,3098.0,3.22788896]
[1767886438830,4.11224142,3099.0,3097.9,6.45593687]
[1767886439040,4.07186075,3099.0,3097.9,7.40065005]
[1767886439514,3.95614461,3099.5,3098.0,0.94471318]
[1767886439713,3.22637647,3099.5,3098.2,0.94471318]
[1767886440322,1.56406925,3099.8,3098.3,7.399866]
[1767886440323,6.452288,3099.7,3098.3,7.399866]
[1767886440527,3.226144,3099.7,3098.3,7.399866]
[1767886440723,1.56406925,3099.8,3098.4,0.94471318]
[1767886440724,0.845,3099.8,3098.4,0.94471318]
[1767886440940,7.33651665,3100.2,3098.4,0.94471318]
[1767886441251,0.73365167,3100.1,3098.6,0.94471318]
[1767886441424,3.61449117,3100.0,3098.6,0.94471318]
[1767886441744,4.50950099,3100.0,3098.3,4.17228959]
[1767886442045,4.50950099,3100.0,3097.8,6.49]
[1767886442046,4.50950099,3099.6,3097.8,0.94471318]
[1767886442248,0.845,3099.5,3098.2,3.2276792]
[1767886442453,4.50950099,3100.0,3098.3,0.929332]
[1767886442630,3.22591051,3099.9,3098.5,0.929332]
[1767886443027,6.45182102,3099.9,3098.5,0.929332]
[1767886443231,0.04032518,3099.8,3098.4,0.843]
[1767886443426,0.04032518,3099.8,3098.2,0.32276792]
[1767886443628,0.64921462,3099.7,3098.0,7.38510992]
[1767886443851,3.57416859,3099.2,3097.7,0.929332]
[1767886444050,0.04033429,3099.1,3097.5,0.17877132]
[1767886444248,3.57416859,3098.8,3097.3,0.930332]
[1767886444453,6.45452784,3098.6,3097.4,3.22845857]
[1767886444759,6.45452784,3098.6,3097.4,6.4569728]
[1767886445048,3.22726392,3098.6,3097.5,0.929332]
[1767886445250,3.22684737,3099.0,3097.4,10.59854576]
[1767886445449,3.22684737,3099.0,3097.6,0.91305873]
[1767886445849,6.45369474,3099.0,3097.6,1.75605873]
[1767886446049,0.04022544,3098.9,3097.6,1.75605873]
[1767886446250,3.22684737,3099.0,3097.7,0.91305873]
[1767886446560,0.845,3099.4,3097.9,0.91305873]
[1767886446862,3.22632682,3099.5,3098.1,0.91305873]
[1767886447262,6.45265364,3099.5,3098.1,0.91305873]
[1767886447464,6.45265364,3099.5,3098.1,1.75605873]
[1767886447669,3.22632682,3099.5,3098.2,0.91305873]
[1767886448166,6.45265364,3099.5,3098.2,0.91305873]
[1767886448346,0.64949814,3099.4,3098.3,0.17560587]
[1767886448554,3.22822273,3099.6,3098.4,3.22747224]
[1767886449058,6.49477639,3099.6,3098.4,3.22747224]
[1767886449258,6.45444861,3099.6,3098.4,3.22747224]
[1767886449859,3.22822273,3099.6,3098.5,0.91305873]
[1767886450156,0.04032908,3099.5,3098.4,3.22747224]
[1767886450350,0.32282227,3099.5,3098.4,3.56778005]
[1767886450555,3.22643092,3099.4,3098.4,3.56778005]
[1767886450963,3.2263943,3099.5,3098.4,7.70831102]
[1767886451166,6.4527886,3099.5,3098.4,3.56778005]
[1767886451333,0.36316981,3099.4,3098.3,0.17560587]
[1767886451836,0.36316981,3099.4,3098.1,0.843]
[1767886452035,0.36316981,3099.4,3098.2,3.22762396]
[1767886452234,0.845,3099.3,3097.8,0.91305873]
[1767886452452,0.845,3099.3,3097.7,6.49]
[1767886452453,1.02082741,3099.2,3097.7,6.49]
[1767886452748,0.98049443,3099.0,3097.7,9.71820051]
[1767886453054,1.10640931,3098.9,3097.7,11.01285815]
[1767886453234,1.10640931,3098.9,3097.7,4.52285815]
[1767886453444,1.10640931,3098.9,3097.7,3.22820051]
[1767886454559,1.10640931,3098.9,3097.6,3.22826567]
[1767886455129,6.45411126,3098.8,3097.5,4.141462]
[1767886455747,3.22705563,3098.8,3097.5,7.369872]
[1767886455950,0.32283943,3099.4,3097.6,0.91305873]
[1767886456155,7.69332457,3099.3,3097.8,0.91305873]
[1767886456338,7.65299289,3099.3,3097.8,0.91305873]
[1767886457127,7.65299289,3099.3,3097.9,6.4559863]
[1767886457873,7.65299289,3099.3,3097.9,7.36904503]
[1767886458057,4.42645787,3099.3,3098.0,0.91305873]
[1767886458261,0.76529106,3099.2,3098.1,1.64996323]
[1767886458452,0.80562404,3099.2,3098.1,1.64996323]
[1767886458649,0.80562404,3099.2,3097.8,3.22807779]
[1767886458850,3.74272692,3098.8,3097.3,0.91405873]
[1767886459052,3.22726392,3098.6,3097.3,0.91405873]
[1767886459243,3.26739293,3098.7,3097.4,6.45702846]
[1767886459244,3.22720631,3098.7,3097.4,6.45702846]
[1767886459440,0.04034079,3098.6,3097.5,0.91305873]
[1767886459664,0.64947534,3098.5,3097.5,0.91305873]
[1767886460381,3.22720631,3098.7,3098.2,0.001]
[1767886460585,6.45441262,3098.7,3098.2,0.001]
[1767886460869,3.22720631,3098.7,3098.2,0.001]
[1767886461045,6.4540108,3098.9,3098.2,0.001]
[1767886461472,3.22698172,3098.9,3098.2,0.001]
[1767886461651,7.18409596,3098.9,3098.2,0.001]
[1767886462073,3.95706688,3098.9,3098.2,0.001]
[1767886462372,0.04033819,3098.8,3098.2,0.001]
[1767886462774,7.18409596,3098.9,3098.2,0.001]
[1767886463575,10.41112504,3098.9,3098.2,0.001]
[1767886463780,0.98049443,3098.7,3097.3,0.001]
[1767886463981,0.98049443,3098.5,3097.3,0.001]
[1767886465036,0.98049443,3098.3,3097.3,0.001]
[1767886465271,6.45536116,3098.2,3097.3,0.001]
[1767886465604,0.74358556,3098.1,3097.3,0.001]
[1767886466116,1.72407999,3098.1,3097.3,0.001]
[1767886466270,0.845,3098.0,3097.3,0.001]
[1767886466688,1.82549443,3098.0,3097.3,0.001]
[1767886466884,0.98049443,3097.9,3096.6,0.001]
[1767886467205,6.45640312,3097.7,3096.6,0.001]
[1767886467576,0.98049443,3097.6,3096.6,0.001]
[1767886467772,0.845,3097.5,3095.9,4.1431219]
[1767886467976,0.845,3097.5,3096.0,3.22996567]
[1767886468407,0.845,3097.5,3095.9,0.91305873]
[1767886468708,0.18254944,3097.4,3096.1,3.22977734]
[1767886468877,0.18254944,3097.4,3096.2,3.22974791]
[1767886469083,0.845,3097.5,3096.2,7.37257215]
[1767886469319,6.45702846,3097.4,3096.2,4.14280664]
[1767886469630,9.68554269,3097.4,3095.8,0.91305873]
[1767886469810,10.66603712,3097.4,3096.0,3.22989251]
[1767886470111,10.66603712,3097.4,3096.0,3.22993094]
[1767886470276,1.15110371,3097.3,3096.2,4.142818]
[1767886470477,1.15110371,3097.3,3096.3,0.91305873]
[1767886471633,3.22853307,3097.4,3096.4,0.91305873]
[1767886471916,6.45706614,3097.4,3096.4,0.91305873]
[1767886472124,3.22853307,3097.4,3096.4,0.91305873]
[1767886472309,6.45706614,3097.4,3096.4,0.91305873]
[1767886474224,10.63134188,3097.4,3096.0,0.93519284]
[1767886474405,1.67594928,3097.3,3095.6,0.93519284]
[1767886474604,1.67594928,3097.3,3095.7,4.16539488]
[1767886474809,1.67594928,3097.3,3095.8,3.23016929]
[1767886474993,1.45900816,3097.2,3095.9,0.41653621]
[1767886475195,0.845,3097.1,3095.9,0.41653621]
[1767886475398,0.845,3097.1,3095.7,0.93519284]
[1767886475598,0.845,3097.1,3095.8,4.16535657]
[1767886475800,6.45786244,3097.0,3096.7,0.001]
[1767886476232,6.45786244,3097.0,3095.9,3.23003704]
[1767886476435,0.845,3096.9,3095.9,4.16522988]
[1767886476623,0.845,3096.9,3096.0,0.7395412]
[1767886476926,3.22893122,3097.0,3096.0,0.7395412]
[1767886477129,0.845,3096.9,3096.0,0.7395412]
[1767886477330,0.845,3096.9,3096.0,1.67473404]
[1767886477500,0.845,3096.9,3096.1,0.93519284]
[1767886477701,3.22913975,3096.8,3096.0,0.7395412]
[1767886477933,0.845,3096.7,3095.8,3.23015671]
[1767886478224,0.845,3096.7,3095.7,4.16543464]
[1767886478420,0.845,3096.7,3095.8,3.23016183]
[1767886478995,0.845,3096.7,3095.7,4.16545602]
[1767886479225,0.845,3096.7,3095.7,4.16542646]
[1767886479434,1.57532795,3096.7,3095.7,1.67477415]
[1767886479602,1.57532795,3096.7,3095.7,4.90505159]
[1767886479936,1.57532795,3096.7,3095.8,0.93519284]
[1767886479937,6.45869662,3096.6,3095.8,0.93519284]
[1767886480229,6.45869662,3096.6,3095.5,4.16562928]
[1767886480448,0.845,3096.5,3095.8,4.16535962]
[1767886480647,0.845,3096.5,3095.8,0.93519284]
[1767886481022,0.845,3096.5,3095.7,3.23027567]
[1767886481433,0.94574267,3097.4,3095.9,0.93519284]
[1767886481639,0.88535773,3097.3,3095.9,0.93519284]
[1767886481845,0.88535773,3097.3,3096.0,0.41652919]
[1767886482022,6.45744542,3097.2,3096.0,1.35172203]
[1767886482227,6.45744542,3097.2,3096.1,0.93519284]
[1767886482444,3.22872271,3097.2,3096.1,0.93519284]
[1767886482820,6.45744542,3097.2,3096.1,0.93519284]
[1767886483050,0.04036033,3097.1,3096.2,0.7811648]
[1767886483226,6.45744542,3097.2,3096.2,0.7811648]
[1767886483419,6.45744542,3097.2,3096.1,0.93519284]
[1767886483621,3.22872271,3097.2,3096.1,0.93519284]
[1767886483855,0.845,3097.1,3096.1,0.93519284]
[1767886484053,6.45786244,3097.0,3095.7,7.42519284]
[1767886484743,0.04036294,3096.9,3095.8,0.93519284]
[1767886484940,0.04036294,3096.9,3095.9,1.0655452]
[1767886485252,3.22893122,3097.0,3096.1,3.22983435]
[1767886485557,0.845,3096.9,3096.2,0.93519284]
[1767886486038,4.0740853,3096.9,3096.2,0.93519284]
[1767886487326,3.22896359,3097.0,3096.2,4.16495271]
[1767886487571,0.845,3096.9,3096.3,1.35168811]
[1767886487723,0.845,3097.0,3096.3,1.35168811]
[1767886487943,0.04035642,3097.4,3096.3,0.93519284]
[1767886488139,6.45744542,3097.2,3096.3,0.93519284]
[1767886488567,9.68616813,3097.2,3096.3,0.93519284]
[1767886488880,9.68616813,3097.2,3096.0,0.93519284]
[1767886488881,0.04036033,3097.1,3096.0,0.93519284]
[1767886489194,0.04036033,3097.1,3095.7,3.23026065]
[1767886489195,1.09347714,3097.1,3095.7,0.93519284]
[1767886489348,0.845,3097.0,3095.7,0.93519284]
[1767886489549,0.845,3097.0,3096.3,0.001]
[1767886489765,0.04036294,3096.9,3096.3,0.001]
[1767886489971,0.88536164,3097.0,3096.3,0.001]
[1767886490166,3.22913975,3096.8,3096.3,0.001]
[1767886490371,6.4582795,3096.8,3096.3,0.001]
[1767886492072,0.19384785,3096.9,3096.3,0.93619284]
[1767886492272,3.22904294,3096.9,3096.3,0.93619284]
[1767886492444,7.30308588,3096.9,3096.3,0.001]
[1767886493045,10.53212882,3096.9,3096.3,0.001]
[1767886493272,7.30308588,3096.9,3096.3,0.001]
[1767886493442,0.73030859,3096.8,3096.3,0.001]
[1767886493642,0.04036555,3096.7,3095.5,0.93519284]
[1767886493846,0.77067283,3096.8,3095.5,0.93519284]
[1767886494046,0.73030859,3096.8,3095.6,0.93519284]
[1767886494284,7.58876823,3096.7,3095.7,0.93519284]
[1767886495256,7.58876823,3096.7,3095.5,3.23046089]
[1767886495485,7.58876823,3096.7,3095.6,3.23038316]
[1767886495974,10.81801226,3096.7,3095.5,0.93519284]
[1767886496183,0.73030859,3096.8,3095.2,0.93519284]
[1767886496184,6.4591138,3096.4,3095.2,0.93519284]
[1767886496381,3.2295569,3096.4,3095.3,0.93519284]
[1767886496582,0.845,3096.3,3095.1,3.23087773]
[1767886496807,1.79074267,3096.3,3095.2,3.23080416]
[1767886497021,3.22950443,3096.5,3095.4,0.93519284]
[1767886497022,0.845,3096.2,3095.4,0.93519284]
[1767886497492,0.845,3096.3,3095.4,0.93519284]
[1767886498783,0.845,3096.3,3095.5,3.23049588]
[1767886499185,4.07467733,3096.3,3095.3,4.48892745]
[1767886499401,7.30435466,3096.3,3095.4,0.93519284]
[1767886499604,7.71182239,3096.3,3095.4,0.93519284]
[1767886500005,7.71182239,3096.3,3095.1,0.93519284]
[1767886500307,7.71182239,3096.3,3095.5,0.93519284]
[1767886500308,3.63714506,3096.3,3095.5,0.93519284]
[1767886500510,0.94774267,3097.1,3095.6,0.4165743]
[1767886500511,3.22913975,3096.8,3095.6,0.4165743]
[1767886500816,3.22934831,3096.6,3095.7,3.23028717]
[1767886500980,3.22934831,3096.6,3095.6,1.35176714]
[1767886500981,3.22934831,3096.6,3095.6,4.58210632]
[1767886501176,6.45869662,3096.6,3095.6,4.58210632]
[1767886501377,6.45869662,3096.6,3095.7,0.45821063]
[1767886501607,3.22934831,3096.6,3095.6,4.58215667]
[1767886501917,3.2290365,3096.9,3095.6,7.81254819]
[1767886502119,0.845,3096.8,3095.6,7.81254819]
[1767886502493,0.04036555,3096.7,3095.6,4.58215667]
[1767886502699,1.19218732,3096.7,3095.7,0.45821567]
[1767886502913,1.15182177,3096.7,3095.7,0.45821567]
[1767886503228,3.22934831,3096.6,3095.7,3.68846057]
[1767886503451,7.45201086,3096.6,3095.7,0.45821567]
[1767886503593,0.95294739,3096.5,3095.4,3.23053158]
[1767886503797,0.95294739,3096.3,3095.0,0.90495956]
[1767886504044,0.845,3096.2,3095.0,0.90495956]
[1767886504206,0.845,3096.2,3095.1,3.23087817]
[1767886504416,0.95294739,3096.1,3094.7,0.90495956]
[1767886504613,0.95294739,3095.9,3094.8,0.51172644]
[1767886504925,0.95294739,3095.9,3094.6,3.23139127]
[1767886505128,7.41331303,3095.8,3094.4,0.90495956]
[1767886505426,0.91714098,3095.5,3093.7,3.23234381]
[1767886505735,0.91714098,3095.5,3093.3,0.6564601]
[1767886505736,0.91714098,3095.0,3093.3,0.92449036]
[1767886505935,0.91714098,3094.8,3093.3,0.92449036]
[1767886506673,3.86798679,3095.4,3092.8,3.23326007]
[1767886506674,0.46598679,3095.4,3093.7,0.92449036]
[1767886506820,0.845,3095.3,3094.3,0.92449036]
[1767886507000,3.23080899,3095.2,3094.3,0.92449036]
[1767886507196,4.07574152,3095.3,3094.3,4.15622013]
[1767886507443,0.845,3095.2,3094.0,0.92449036]
[1767886507613,1.76214098,3095.2,3093.6,0.92449036]
[1767886507823,0.1762141,3095.1,3093.6,1.3401999]
[1767886508116,0.1762141,3095.1,3093.6,0.92449036]
[1767886508631,0.846,3095.0,3093.6,0.92449036]
[1767886508862,0.91714098,3095.0,3093.6,4.15687539]
[1767886509066,3.23112216,3094.9,3093.8,0.92449036]
[1767886509206,0.846,3094.8,3093.8,0.92449036]
[1767886509413,0.846,3094.8,3093.3,0.92449036]
[1767886509637,0.846,3094.8,3093.5,3.23255519]
[1767886510458,0.846,3094.8,3093.5,1.66347184]
[1767886510670,0.846,3094.8,3093.5,0.92449036]
[1767886511029,6.46266196,3094.7,3093.5,4.15701062]
[1767886511257,6.46266196,3094.7,3093.6,0.92449036]
[1767886511459,6.46266196,3094.7,3093.2,0.92449036]
[1767886511664,0.09668063,3094.6,3093.2,0.92449036]
[1767886511860,0.09668063,3094.6,3093.1,3.23293705]
[1767886511861,0.91714098,3094.4,3093.1,3.23293705]
[1767886512043,0.846,3094.3,3092.8,0.92449036]
[1767886512241,0.846,3094.3,3092.9,0.92449036]
[1767886512562,0.91714098,3094.2,3093.1,3.2329559]
[1767886512736,0.91714098,3094.4,3092.7,0.92449036]
[1767886513057,0.91714098,3094.4,3092.6,3.58919494]
[1767886513058,3.23195759,3094.1,3092.8,0.45136853]
[1767886513267,3.23195759,3094.1,3092.9,6.46632786]
[1767886513448,4.14902465,3094.2,3092.9,6.46632786]
[1767886513652,7.38090832,3094.2,3092.9,3.23311632]
[1767886513851,4.14902465,3094.2,3092.9,6.46632786]
[1767886514034,0.846,3094.1,3092.9,6.46632786]
[1767886514235,0.846,3094.1,3093.0,0.64663279]
[1767886514565,0.846,3094.1,3092.4,0.92449036]
[1767886514566,0.91714098,3094.0,3092.8,3.23331341]
[1767886514742,4.43519494,3094.1,3092.8,0.92449036]
[1767886515077,4.43519494,3094.1,3092.1,0.844]